[Event "FRA-ch Teams Top 16-Bas 2022"]
[Site "Chartres"]
[Date "2022.06.18"]
[Round "10.27"]
[White "Solakian-Van Eyll, Jerome"]
[Black "Duboue, Peio"]
[Result "0-1"]
[ECO "D00"]
[WhiteElo "2248"]
[BlackElo "2426"]
[Annotator "TA"]
[PlyCount "66"]
[EventDate "2022.06.16"]
[EventType "team-tourn"]
[EventCountry "FRA"]
[SourceTitle "playchess.com"]
[Source "ChessBase"]
[SourceQuality "1"]
[TimeControl "40/5400+30:1800+30"]

{[%evp 9,66,-2,-2,0,-3,-6,-3,-5,-7,-3,16,17,30,31,23,14,14,13,31,40,26,12,16,0,26,15,6,10,10,9,6,0,0,-8,-8,-6,0,-39,-40,-44,-29,-28,-23,-32,-9,-5,9,-105,-102,-197,-207,-602,-573,-837,-746,-947,-923,-834,-813]} 1. d4 {[%emt 0:02:08]} d5 {[%emt 0:00:04]} 2. Nc3 {[%emt 0:00:36]} Nf6 {[%emt 0:00:05]} 3. Bf4 {[%emt 0:00:18]} c5 {[%emt 0:00:57]} 4. e4 {[%emt 0:01:56]} Nxe4 {[%emt 0:05:56]} 5. Nxe4 {[%emt 0:00:46]} dxe4 {[%emt 0:00:03]} 6. dxc5 {[%emt 0:00:20] D00: 1 d4 d5: Unusual lines.} Qa5+ {[%emt 0:02:46]} 7. c3 {[%emt 0:00:26] And now b4 would win.} Qxc5 {[%emt 0:03:40]} 8. Qa4+ {[%emt 0:00:26] The position is equal.} Nc6 {[%emt 0:02:50]} 9. Qxe4 {[%emt 0:00:34]} Bf5 {[%emt 0:02:11]} 10. Qa4 {[%emt 0:03:29]} e5 {[%emt 0:07:37]} (10... Qb6 {looks sharper.} 11. O-O-O e5 12. Bxe5 Qxf2 13. Nf3 Bc5) 11. Be3 {[%emt 0:00:35]} Qa5 {[%emt 0:00:45] [#]} 12. Qxa5 $146 {[%emt 0:04:44]} ({Predecessor:} 12. Qb3 Qc7 13. Nf3 Bd6 14. Bc4 O-O 15. Bd5 Rad8 16. Ng5 Na5 17. Qa4 h6 18. Ne4 {0-1 (51) Shimanov,A (2581)-Deac,B (2679) Chess.com INT 2022}) 12... Nxa5 {[%emt 0:00:17]} 13. O-O-O {[%emt 0:06:52]} Be7 {[%emt 0:05:19]} 14. Bb5+ {[%emt 0:04:54]} Nc6 {[%emt 0:00:22]} 15. Nf3 {[%emt 0:03:51] aiming for Nxe5.} f6 {[%emt 0:05:10]} 16. Bc4 {[%emt 0:05:39]} Bd7 {[%emt 0:05:22]} 17. Rd2 {[%emt 0:18:20]} O-O-O {[%emt 0:00:35]} 18. Rhd1 {[%emt 0:04:09]} Kc7 {[%emt 0:04:59]} 19. b4 {[%emt 0:08:48]} b6 {[%emt 0:06:22]} 20. Kb2 {[%emt 0:05:55]} g5 {[%emt 0:04:19]} 21. Kb3 {[%emt 0:11:02]} Bc8 {[%emt 0:04:40]} 22. a4 {[%emt 0:02:01]} Rxd2 {[%emt 0:01:48]} 23. Rxd2 {[%emt 0:00:27][%cal Oa4a5]} a5 {[%emt 0:02:53][%cal Ra5b4]} 24. b5 {[%emt 0:09:15]} Nb8 {[%emt 0:00:13]} 25. Ne1 {[%emt 0:04:10]} Nd7 {[%emt 0:00:51]} 26. f3 {[%emt 0:00:11]} Rd8 {[%emt 0:08:32]} 27. Nd3 {[%emt 0:00:39]} f5 {[%emt 0:04:35][%cal Bf6f5,Bf5f4,Bf4e3][%mdl 32]} 28. Bd5 {[%emt 0:01:08]} (28. Re2 $11) 28... Nf6 {[%emt 0:01:52]} 29. Bc6 {[%emt 0:00:06] [#]} (29. Bc4 $17 f4 30. Bf2) 29... f4 $1 $19 {[%emt 0:00:40]} 30. Nxe5 $2 {[%emt 0:01:14]} (30. Bg1) 30... fxe3 {[%emt 0:00:25] Black is clearly winning.} 31. Re2 {[%emt 0:00:08]} Bc5 {[%emt 0:00:33] White must now prevent ...Be6+.} 32. g4 {[%emt 0:00:13]} h6 {[%emt 0:02:04]} 33. Kc2 {[%emt 0:00:07]} Be6 {[%emt 0:00:12] Weighted Error Value: White=0.44/Black=0.09 (flawless)} 0-1

[Event "FRA-ch Teams Top 16-Bas 2022"]
[Site "Chartres"]
[Date "2022.06.18"]
[Round "10.28"]
[White "Hutois, Mickael"]
[Black "Sohier, Julien"]
[Result "1-0"]
[ECO "C65"]
[WhiteElo "2238"]
[BlackElo "2218"]
[Annotator "TA"]
[PlyCount "71"]
[EventDate "2022.06.16"]
[EventType "team-tourn"]
[EventCountry "FRA"]
[SourceTitle "playchess.com"]
[Source "ChessBase"]
[SourceQuality "1"]
[TimeControl "40/5400+30:1800+30"]

{[%evp 12,71,14,10,10,12,14,15,79,79,66,63,93,94,103,73,93,84,87,85,100,98,94,88,105,101,89,101,100,97,98,101,170,128,162,145,150,125,192,173,177,172,177,177,177,166,166,176,170,149,177,168,273,274,304,303,359,355,330,337,378,377]} 1. e4 {[%emt 0:00:01]} e5 {[%emt 0:01:40]} 2. Nf3 {[%emt 0:00:06]} Nc6 {[%emt 0:00:17]} 3. Bb5 {[%emt 0:00:06]} Nf6 {[%emt 0:01:04]} 4. d3 {[%emt 0:00:07]} Bc5 {[%emt 0:00:47]} 5. c3 {[%emt 0:00:07]} O-O {[%emt 0:00:57]} 6. O-O {[%emt 0:05:13]} d6 {[%emt 0:00:30]} 7. Nbd2 {[%emt 0:02:02] 7.Re1 is the fancy move.} a6 {[%emt 1:28:45] C65: Ruy Lopez: Berlin Defence (3...Nf6), unusual lines and 4 0-0 Bc5.} 8. Bxc6 {[%emt 0:05:46]} bxc6 {[%emt 0:00:00]} 9. d4 {[%emt 0:00:04]} Bb6 {[%emt 0:00:00]} (9... exd4 $11 {remains equal.} 10. cxd4 Bb6) 10. dxe5 $16 {[%emt 0:01:55]} dxe5 {[%emt 0:00:00]} 11. Nxe5 {[%emt 0:00:37] [#]} Re8 $146 {[%emt 0:00:00]} ({Predecessor:} 11... Qd6 12. Ndc4 Qxd1 13. Rxd1 Be6 14. Nxb6 cxb6 15. f3 Rad8 16. Rxd8 Rxd8 17. Bg5 h6 18. Bxf6 gxf6 19. Nxc6 {1-0 (45) Kowalski,B (1415)-Landowski,W (1280) IECC email 2002}) 12. Ndc4 {[%emt 0:05:53] Strongly threatening Qxd8.} (12. Nxc6 Qd7 13. Nd4 Bxd4 14. cxd4 Qxd4 $14) 12... Qe7 {[%emt 0:00:00]} 13. Nxc6 {[%emt 0:09:49] Pair of Knights!} Qxe4 {[%emt 0:00:00]} 14. Nxb6 {[%emt 0:00:09]} cxb6 {[%emt 0:00:00]} 15. Nd4 {[%emt 1:06:05]} (15. Qf3 Qxf3 16. gxf3 Bb7 $14) 15... Bb7 {[%emt 0:00:00][%csl Gb7][%cal Re4g2]} 16. f3 {[%emt 0:00:00]} Qh4 {[%emt 0:00:00]} 17. Qd2 {[%emt 0:00:00]} b5 {[%emt 0:00:00]} 18. Qg5 {[%emt 0:00:00]} (18. Nf5 {looks sharper.} Qh5 19. Qg5 Qxg5 20. Bxg5 Re5 21. Nd6) 18... Qxg5 {[%emt 0:00:00]} 19. Bxg5 {[%emt 0:00:00][%cal Bc1g5,Bg5f4,Bf4d6][%mdl 32]} Nd5 {[%emt 0:00:00]} 20. a4 {[%emt 0:00:00]} b4 {[%emt 0:00:00]} 21. c4 {[%emt 0:00:00]} Nc7 {[%emt 0:00:00]} (21... f6 $16) 22. Nb3 {[%emt 0:00:00]} Bc8 {[%emt 0:00:00]} 23. Bf4 {[%emt 0:00:00]} Ne6 {[%emt 0:00:00]} 24. Bd6 {[%emt 0:00:00] White is more active.} Bd7 {[%emt 0:00:56]} (24... a5 $16 {was necessary.} 25. Rfe1 h6) 25. Rfe1 {[%emt 0:00:00]} (25. Bxb4 $6 Rab8 26. Nc5 Rxb4 27. Nxd7 Rxc4 $14) 25... Rac8 {[%emt 0:01:24]} 26. Na5 {[%emt 0:00:00]} (26. Bxb4 Rxc4 27. Bc3 Rxa4 $11) 26... Nd4 {[%emt 0:03:01]} 27. Rxe8+ {[%emt 0:06:00]} ({Not} 27. Bxb4 Nc2 $11) 27... Bxe8 {[%emt 0:01:03]} 28. Rd1 {[%emt 0:00:00]} ({Worse is} 28. Bxb4 Nc2 29. Rd1 Nxb4 $17) 28... Nc6 {[%emt 0:01:41]} 29. Nxc6 {[%emt 0:00:00]} Bxc6 $18 {[%emt 0:00:09][%mdl 4096] Endgame KRB-KRB} 30. b3 {[%emt 0:00:00]} h5 {[%emt 0:01:20]} 31. a5 {[%emt 0:00:00]} ({Much less strong is} 31. Bxb4 Rb8) 31... Bd7 {[%emt 0:01:45]} (31... Rd8 $142 32. Kf2 f6) 32. Bxb4 {[%emt 0:00:00]} Bf5 {[%emt 0:00:13] [#]} 33. Rd6 $1 {[%emt 0:00:00]} Bc2 {[%emt 0:00:10]} 34. Rxa6 {[%emt 0:00:00]} Bxb3 {[%emt 0:00:30] [#]} 35. c5 {[%emt 0:00:00]} Ba4 {[%emt 0:01:48]} 36. Rb6 {[%emt 0:00:00] White took control after the opening.  Weighted Error Value: White=0.05 (flawless) /Black=0.26 (precise)} 1-0

[Event "FRA-ch Teams Top 16-Bas 2022"]
[Site "Chartres"]
[Date "2022.06.18"]
[Round "10.29"]
[White "Ramirez Garcia, Jorge Alberto"]
[Black "Real, Thibault"]
[Result "1/2-1/2"]
[ECO "B06"]
[WhiteElo "2242"]
[BlackElo "2262"]
[Annotator "TA"]
[PlyCount "118"]
[EventDate "2022.06.16"]
[EventType "team-tourn"]
[EventCountry "FRA"]
[SourceTitle "playchess.com"]
[Source "ChessBase"]
[SourceQuality "1"]
[TimeControl "40/5400+30:1800+30"]

{[%evp 11,118,27,29,19,21,27,17,18,14,16,13,13,13,8,0,0,0,0,0,0,0,3,21,10,14,0,0,-1,-5,-2,0,8,15,5,6,8,12,9,8,0,6,0,33,9,12,16,31,24,58,44,57,5,56,45,64,55,45,0,0,0,0,0,31,17,21,0,0,0,0,0,0,0,0,0,0,0,0,0,0,0,0,0,0,0,0,0,0,0,0,0,0,0,0,0,0,0,0,0,0,0,0,0,0,0,0,0,0,0,0]} 1. e4 {[%emt 0:00:03]} c5 {[%emt 0:00:04]} 2. c3 {[%emt 0:00:05]} d5 {[%emt 0:00:06]} 3. exd5 {[%emt 0:00:05]} Qxd5 {[%emt 0:00:04]} 4. d4 {[%emt 0:00:08]} g6 {[%emt 0:00:08]} 5. Nf3 {[%emt 0:00:21]} Bg7 {[%emt 0:00:05]} 6. Na3 {[%emt 0:00:33][%cal Bb1a3,Ba3b5,Bb5d4,Bd4b5,Bb5c7][%mdl 32]} cxd4 {[%emt 0:00:08]} 7. Nb5 {[%emt 0:00:51] [#] And now Nc7+ would win. B06: Modern Defence.} Na6 {[%emt 0:00:10] Against Nc7+} 8. Nbxd4 {[%emt 0:00:17] Active counter play!} Nf6 {[%emt 0:00:15]} 9. Bb5+ {[%emt 0:00:09]} Bd7 {[%emt 0:00:05]} 10. Qe2 {[%emt 0:00:15]} Bxb5 {[%emt 0:00:06]} 11. Nxb5 {[%emt 0:00:10]} O-O {[%emt 0:00:27]} 12. O-O {[%emt 0:00:23]} Qe4 {[%emt 0:00:09] [#]} 13. Qxe4 $146 {[%emt 0:00:51]} ({Predecessor:} 13. Re1 Nc5 14. Qf1 Qa4 15. Be3 Nce4 16. Bd4 a6 17. Na3 Nd6 18. Rad1 Nf5 19. Qc4 Qxc4 20. Nxc4 Nxd4 21. Nxd4 {½-½ (39) Hausdorf,H (2260)-Kisch,E (2174) ICCF email 2016}) 13... Nxe4 {[%emt 0:00:02]} 14. Be3 {[%emt 0:00:10]} Nac5 {[%emt 0:00:05]} 15. Ng5 {[%emt 0:00:45]} a6 {[%emt 0:00:48]} 16. Nc7 {[%emt 0:00:23]} Rac8 {[%emt 0:34:21]} 17. Nd5 {[%emt 0:07:48]} Rfe8 {[%emt 0:01:18]} 18. Rad1 {[%emt 0:12:37]} Nf6 {[%emt 0:11:27]} 19. Bxc5 {[%emt 0:15:19]} Rxc5 {[%emt 0:00:16]} 20. Nxf6+ {[%emt 0:00:20]} Bxf6 {[%emt 0:02:41]} 21. Ne4 {[%emt 0:00:15]} Rc7 {[%emt 0:09:45]} 22. Nxf6+ {[%emt 0:01:31]} exf6 $11 {[%emt 0:02:46][%mdl 4096] Endgame KRR-KRR} 23. Rd2 {[%emt 0:01:14] Against Re2} f5 {[%emt 0:06:40]} 24. Rfd1 {[%emt 0:02:04]} Rce7 {[%emt 0:03:47] [#] ( -> ...Re1+)} 25. g3 {[%emt 0:00:06]} Kg7 {[%emt 0:11:56]} 26. Kf1 {[%emt 0:05:01]} g5 {[%emt 0:02:04]} 27. Rd8 {[%emt 0:01:41]} Rxd8 {[%emt 0:03:00]} 28. Rxd8 {[%emt 0:00:07] KR-KR} g4 {[%emt 0:01:58]} 29. Rd6 {[%emt 0:08:19]} f6 {[%emt 0:00:55]} 30. c4 {[%emt 0:00:59]} Kg6 {[%emt 0:00:22]} 31. c5 {[%emt 0:01:30]} (31. a4 $14) 31... h5 {[%emt 0:03:05]} (31... a5 $1 $11) 32. b4 {[%emt 0:00:24]} h4 {[%emt 0:00:35]} 33. gxh4 {[%emt 0:04:04][%cal Bg3h4,Bh4h5,Bh5h6][%mdl 32]} f4 {[%emt 0:00:06]} 34. f3 {[%emt 0:00:34]} gxf3 {[%emt 0:01:44]} 35. Kf2 {[%emt 0:04:26]} a5 {[%emt 0:00:30]} 36. h5+ {[%emt 0:21:46]} ({Don't do} 36. bxa5 $6 Re2+ 37. Kxf3 Rxa2 $14) 36... Kg5 {[%emt 0:02:25]} 37. Rd5+ {[%emt 0:01:07]} f5 {[%emt 0:00:36] The position is equal.} 38. h6 {[%emt 0:03:32] Threatens to win with b5.} (38. b5 $5 {[%cal Rd5d2]}) 38... axb4 {[%emt 0:00:39]} 39. Rd6 {[%emt 0:00:48]} Re2+ {[%emt 0:00:45]} 40. Kxf3 {[%emt 0:00:08]} Rxh2 {[%emt 0:00:29]} 41. Rb6 {[%emt 0:31:28][%csl LRb4,LRb7]} Rh3+ {[%emt 0:33:09]} 42. Kg2 {[%emt 0:00:39]} Rxh6 {[%emt 0:00:18]} 43. Rxb4 {[%emt 0:05:57]} ({But not} 43. Rxb7 Ra6 $15) 43... Ra6 {[%emt 0:00:00]} 44. Rxb7 {[%emt 0:00:00]} Rxa2+ {[%emt 0:00:00]} 45. Kf3 {[%emt 0:00:00]} Ra3+ {[%emt 0:00:00]} 46. Kf2 {[%emt 0:00:00]} Rc3 {[%emt 0:00:00]} 47. Rc7 {[%emt 0:00:00]} f3 {[%emt 0:00:00]} 48. Kg3 {[%emt 0:00:00]} f2+ {[%emt 0:00:00]} 49. Kxf2 {[%emt 0:00:00]} Kf4 {[%emt 0:00:00]} 50. Ke2 {[%emt 0:00:00]} Ke4 {[%emt 0:00:00]} 51. Re7+ {[%emt 0:00:00]} Kd4 {[%emt 0:00:00]} 52. c6 {[%emt 0:00:00]} Rxc6 {[%emt 0:00:00]} 53. Kf3 {[%emt 0:00:00]} Rc1 {[%emt 0:00:00]} 54. Re8 {[%emt 0:00:00]} Rf1+ {[%emt 0:00:00]} 55. Kg3 {[%emt 0:00:00]} Kd5 {[%emt 0:00:00]} 56. Re7 {[%emt 0:00:00]} Kd6 {[%emt 0:00:00]} 57. Re8 {[%emt 0:00:00]} Kd7 {[%emt 0:00:00]} 58. Re5 {[%emt 0:00:00]} Kd6 {[%emt 0:00:00]} 59. Re8 {[%emt 0:00:00]} Kd7 {[%emt 0:09:41] Weighted Error Value: White=0.06 (flawless) /Black=0.06 (flawless)} 1/2-1/2

[Event "FRA-ch Teams Top 16-Bas 2022"]
[Site "Chartres"]
[Date "2022.06.18"]
[Round "10.30"]
[White "Prodhomme, Boris"]
[Black "Hirth, Julien"]
[Result "1-0"]
[ECO "E90"]
[WhiteElo "2045"]
[BlackElo "2072"]
[Annotator "NA RC"]
[PlyCount "117"]
[EventDate "2022.06.16"]
[EventType "team-tourn"]
[EventCountry "FRA"]
[SourceTitle "playchess.com"]
[Source "ChessBase"]
[SourceQuality "1"]
[TimeControl "40/5400+30:1800+30"]

1. d4 {[%emt 0:03:21]} d6 {[%emt 0:00:09]} 2. Nf3 {[%emt 0:00:11]} Nf6 {[%emt 0:00:09]} 3. c4 {[%emt 0:00:06]} g6 {[%emt 0:00:11]} 4. Nc3 {[%emt 0:00:09]} Bg7 {[%emt 0:00:12]} 5. e4 {[%emt 0:00:06]} O-O {[%emt 0:00:18]} 6. h3 {[%emt 0:00:10]} e5 {[%emt 0:00:23]} 7. d5 {[%emt 0:00:07]} a5 {[%emt 0:00:22]} 8. Bg5 {[%emt 0:00:16]} Na6 {[%emt 0:00:32]} 9. a3 {[%emt 1:30:34]} Bd7 {[%emt 1:32:44]} 10. Nd2 {[%emt 0:00:30]} h6 {[%emt 0:00:30]} 11. Be3 {[%emt 0:00:30]} Nc5 {[%emt 0:00:30]} 12. b4 {[%emt 0:00:00]} axb4 {[%emt 0:00:30]} 13. axb4 {[%emt 0:00:00]} Rxa1 {[%emt 0:00:00]} 14. Qxa1 {[%emt 0:00:00]} Na6 {[%emt 0:00:00]} 15. c5 {[%emt 0:00:00]} Nh5 {[%emt 0:00:00]} 16. c6 {[%emt 0:00:00]} Nxb4 {[%emt 0:00:00]} 17. Qb1 {[%emt 0:00:00]} Nxc6 {[%emt 0:00:00]} 18. dxc6 {[%emt 0:00:00]} Bxc6 {[%emt 0:00:00]} 19. Be2 {[%emt 0:00:00]} Nf4 {[%emt 0:00:00]} 20. Bf3 {[%emt 0:00:00]} f5 {[%emt 0:00:00]} 21. g3 {[%emt 0:00:00]} Ne6 {[%emt 0:00:00]} 22. Qb3 {[%emt 0:00:00]} Qf6 {[%emt 0:00:00]} 23. exf5 {[%emt 0:00:00]} gxf5 {[%emt 0:00:00]} 24. Bd5 {[%emt 0:00:00]} Bxd5 {[%emt 0:00:36]} 25. Qxd5 {[%emt 0:00:00]} c6 {[%emt 0:00:55]} 26. Qxd6 {[%emt 0:00:00]} Rd8 {[%emt 0:00:04]} 27. Qb4 {[%emt 0:00:00]} e4 {[%emt 0:00:29]} 28. Ncb1 {[%emt 0:00:00]} f4 {[%emt 0:00:57]} 29. gxf4 {[%emt 0:00:00]} Nxf4 {[%emt 0:00:25]} 30. Bxf4 {[%emt 0:00:00]} Qxf4 {[%emt 0:00:20]} 31. Qe7 {[%emt 0:01:04]} Rf8 {[%emt 0:00:42]} 32. Rf1 {[%emt 0:03:23]} Rf7 {[%emt 0:02:11]} 33. Qe8+ {[%emt 0:00:19]} Rf8 {[%emt 0:00:21]} 34. Qxe4 {[%emt 0:00:35]} Qf7 {[%emt 0:00:23]} 35. Qc4 {[%emt 0:00:40]} Re8+ {[%emt 0:00:14]} 36. Kd1 {[%emt 0:00:07]} Re6 {[%emt 0:00:20]} 37. f4 {[%emt 0:00:45]} b5 {[%emt 0:04:33]} 38. Qb3 {[%emt 0:00:03]} Qh5+ {[%emt 0:00:00]} 39. Rf3 {[%emt 0:02:14]} Qf5 {[%emt 0:00:00]} 40. Re3 {[%emt 0:01:18]} Kf7 {[%emt 0:00:42]} 41. Rxe6 {[%emt 0:32:55]} Qxe6 {[%emt 0:02:23]} 42. Qd3 {[%emt 0:00:00]} Qf6 {[%emt 0:19:15]} 43. Qd7+ {[%emt 0:00:00]} Kg6 {[%emt 0:01:01]} 44. Qe8+ {[%emt 0:00:00]} Kh7 {[%emt 0:00:38]} 45. Qe4+ {[%emt 0:00:00]} Kg8 {[%emt 0:01:18]} 46. Nf3 {[%emt 0:00:00]} c5 {[%emt 0:03:45]} 47. Ne5 {[%emt 0:00:00]} Qd6+ {[%emt 0:00:49]} 48. Ke2 {[%emt 0:00:00]} c4 {[%emt 0:01:32]} 49. Nd2 {[%emt 0:00:00]} c3 {[%emt 0:00:32]} 50. Ndf3 {[%emt 0:00:00]} b4 {[%emt 0:01:02]} 51. Qc4+ {[%emt 0:00:00]} Kh7 {[%emt 0:00:08]} 52. Qd3+ {[%emt 0:03:12]} Qxd3+ {[%emt 0:00:06]} 53. Kxd3 {[%emt 0:00:07]} Bxe5 {[%emt 0:00:10]} 54. fxe5 {[%emt 0:00:54]} Kg6 {[%emt 0:00:46]} 55. Nd4 {[%emt 0:00:09]} Kf7 {[%emt 0:01:28]} 56. Ke4 {[%emt 0:01:22]} c2 {[%emt 0:02:36]} 57. Nxc2 {[%emt 0:00:32]} b3 {[%emt 0:00:04]} 58. Na3 {[%emt 0:00:03]} Ke6 {[%emt 0:01:15]} 59. Nb1 {[%emt 0:00:05]} 1-0

[Event "FRA-ch Teams Top 16-Bas 2022"]
[Site "Chartres"]
[Date "2022.06.18"]
[Round "10.31"]
[White "Auvray, Juliette"]
[Black "Jaouen, Valentin"]
[Result "1-0"]
[ECO "B15"]
[WhiteElo "1970"]
[BlackElo "2121"]
[Annotator "NA RC"]
[PlyCount "61"]
[EventDate "2022.06.16"]
[EventType "team-tourn"]
[EventCountry "FRA"]
[SourceTitle "playchess.com"]
[Source "ChessBase"]
[SourceQuality "1"]
[TimeControl "40/5400+30:1800+30"]

1. e4 {[%emt 0:00:02]} c6 {[%emt 0:00:04]} 2. d4 {[%emt 0:00:11]} d5 {[%emt 0:00:06]} 3. Nc3 {[%emt 0:00:29]} dxe4 {[%emt 0:00:08]} 4. Nxe4 {[%emt 0:00:06]} Nf6 {[%emt 0:00:04]} 5. Nxf6+ {[%emt 0:01:25]} exf6 {[%emt 0:00:09]} 6. Be3 {[%emt 0:03:33]} Bd6 {[%emt 0:01:05]} 7. Bd3 {[%emt 0:01:52]} O-O {[%emt 0:00:37]} 8. Qd2 {[%emt 0:03:27]} Re8 {[%emt 0:01:50]} 9. O-O-O {[%emt 0:05:22]} Nd7 {[%emt 0:04:01]} 10. Ne2 {[%emt 0:02:58]} a5 {[%emt 0:06:16]} 11. g4 {[%emt 0:04:41]} Nb6 {[%emt 0:09:50]} 12. g5 {[%emt 0:03:40]} Nd5 {[%emt 0:13:01]} 13. gxf6 {[%emt 0:04:22]} Qxf6 {[%emt 0:08:37]} 14. Bg5 {[%emt 0:08:23]} Qe6 {[%emt 0:03:09]} 15. Rde1 {[%emt 0:08:47]} Nb4 {[%emt 0:08:38]} 16. Nc3 {[%emt 0:04:28]} Nxd3+ {[%emt 0:01:56]} 17. cxd3 {[%emt 0:01:23]} Qd7 {[%emt 0:00:26]} 18. Rxe8+ {[%emt 0:02:34]} Qxe8 {[%emt 0:00:05]} 19. Ne4 {[%emt 0:02:06]} Qe6 {[%emt 0:19:51]} 20. Re1 {[%emt 0:12:09]} Bb4 {[%emt 0:04:52]} 21. Nc3 {[%emt 0:01:29]} Qd7 {[%emt 0:00:17]} 22. Qf4 {[%emt 0:03:52]} b5 {[%emt 0:05:43]} 23. a3 {[%emt 0:05:36]} Bd6 {[%emt 0:04:38]} 24. Qh4 {[%emt 0:02:01]} Bb7 {[%emt 0:02:59]} 25. Ne4 {[%emt 0:02:41]} Kh8 {[%emt 0:01:28]} 26. Nxd6 {[%emt 0:03:56]} Qxd6 {[%emt 0:00:06]} 27. Re7 {[%emt 0:00:30]} f6 {[%emt 0:01:50]} 28. Qe4 {[%emt 0:01:19]} fxg5 {[%emt 0:02:07]} 29. Re8+ {[%emt 0:00:41]} Qf8 {[%emt 0:00:04]} 30. Rxf8+ {[%emt 0:00:06]} Rxf8 {[%emt 0:00:04]} 31. Qe7 {[%emt 0:00:17]} 1-0

[Event "FRA-ch Teams Top 16-Bas 2022"]
[Site "Chartres"]
[Date "2022.06.18"]
[Round "10.32"]
[White "Ruhlmann, Helene"]
[Black "Lemonnier, Remi"]
[Result "1-0"]
[ECO "D44"]
[WhiteElo "1779"]
[BlackElo "2033"]
[Annotator "NA RC"]
[PlyCount "105"]
[EventDate "2022.06.16"]
[EventType "team-tourn"]
[EventCountry "FRA"]
[SourceTitle "playchess.com"]
[Source "ChessBase"]
[SourceQuality "1"]
[TimeControl "40/5400+30:1800+30"]

1. d4 {[%emt 0:00:03]} d5 {[%emt 0:00:18]} 2. c4 {[%emt 0:00:05]} c6 {[%emt 0:00:04]} 3. Nf3 {[%emt 0:00:07]} Nf6 {[%emt 0:00:06]} 4. Nc3 {[%emt 0:00:06]} e6 {[%emt 0:00:40]} 5. Bg5 {[%emt 0:00:12]} dxc4 {[%emt 0:00:52]} 6. e4 {[%emt 0:00:21]} b5 {[%emt 0:01:05]} 7. e5 {[%emt 0:00:26]} h6 {[%emt 0:00:10]} 8. Bh4 {[%emt 0:00:33]} g5 {[%emt 0:00:17]} 9. Nxg5 {[%emt 0:00:26]} hxg5 {[%emt 0:00:06]} 10. Bxg5 {[%emt 0:00:02]} Nbd7 {[%emt 0:00:39]} 11. exf6 {[%emt 0:00:46]} Bb7 {[%emt 0:02:00]} 12. g3 {[%emt 0:00:42]} c5 {[%emt 0:01:39]} 13. d5 {[%emt 0:00:06]} Qb6 {[%emt 0:00:57]} 14. Bg2 {[%emt 0:00:46]} O-O-O {[%emt 0:00:48]} 15. O-O {[%emt 0:00:35]} b4 {[%emt 0:02:46]} 16. Na4 {[%emt 0:00:29]} Qa6 {[%emt 0:00:54]} 17. a3 {[%emt 0:01:17]} Bxd5 {[%emt 0:07:40]} 18. Bxd5 {[%emt 0:01:56]} Ne5 {[%emt 0:00:28]} 19. Qe2 {[%emt 0:02:15]} Rxd5 {[%emt 0:01:10]} 20. axb4 {[%emt 0:00:11]} cxb4 {[%emt 0:00:39]} 21. Nc3 {[%emt 0:00:18]} Qd6 {[%emt 0:07:27]} 22. Nxd5 {[%emt 0:00:57]} Qxd5 {[%emt 0:00:08]} 23. f3 {[%emt 0:00:12]} Nd3 {[%emt 0:01:14]} 24. h4 {[%emt 0:01:36]} Bc5+ {[%emt 0:10:11]} 25. Kg2 {[%emt 0:02:29]} Qd4 {[%emt 0:08:17]} 26. b3 {[%emt 0:07:25]} c3 {[%emt 0:18:05]} 27. Rad1 {[%emt 0:09:43]} Rd8 {[%emt 0:00:12]} 28. Qe4 {[%emt 0:01:14]} Qxe4 {[%emt 0:12:20]} 29. fxe4 {[%emt 0:00:58]} a5 {[%emt 0:00:32]} 30. h5 {[%emt 0:14:11]} a4 {[%emt 0:02:26]} 31. bxa4 {[%emt 0:12:54]} b3 {[%emt 0:01:02]} 32. h6 {[%emt 0:03:11]} Ne5 {[%emt 0:06:12]} 33. Rxd8+ {[%emt 0:09:32]} Kxd8 {[%emt 0:00:04]} 34. h7 {[%emt 0:00:05]} Ng6 {[%emt 0:00:10]} 35. Bc1 {[%emt 0:05:43]} b2 {[%emt 0:02:30]} 36. Bxb2 {[%emt 0:00:11]} cxb2 {[%emt 0:00:05]} 37. g4 {[%emt 0:01:27]} Kc7 {[%emt 0:05:25]} 38. Kf3 {[%emt 0:00:49]} Kb6 {[%emt 0:02:28]} 39. Ke2 {[%emt 0:01:01]} Ka5 {[%emt 0:02:06]} 40. Kd3 {[%emt 0:00:18]} Kxa4 {[%emt 0:03:25]} 41. Kc2 {[%emt 0:31:23]} Bd4 {[%emt 0:04:48]} 42. g5 {[%emt 0:00:00]} Kb4 {[%emt 0:02:49]} 43. Rh1 {[%emt 0:00:00]} Nh8 {[%emt 0:01:07]} 44. Rh3 {[%emt 0:00:00]} Be5 {[%emt 0:11:58]} 45. Rd3 {[%emt 0:00:00]} Bf4 {[%emt 0:01:15]} 46. Rd8 {[%emt 0:00:00]} Ng6 {[%emt 0:00:06]} 47. Rg8 {[%emt 0:00:00]} Ka3 {[%emt 0:02:55]} 48. Kb1 {[%emt 0:00:00]} Ne5 {[%emt 0:03:54]} 49. h8=Q {[%emt 0:00:00]} Nc4 {[%emt 0:00:10]} 50. Qh3+ {[%emt 0:00:00]} Be3 {[%emt 0:03:43]} 51. Ra8+ {[%emt 0:00:00]} Kb3 {[%emt 0:00:11]} 52. Rb8+ {[%emt 0:00:00]} Kc3 {[%emt 0:00:07]} 53. Rxb2 {[%emt 0:00:00]} 1-0